[Event "FIDE Candidates Tournament 2022"]
[Site "Madrid"]
[Date "2022.06.17"]
[Round "1.1"]
[White "Duda, Jan-Krzysztof"]
[Black "Rapport, Richard"]
[Result "1/2-1/2"]
[ECO "B44"]
[WhiteElo "2750"]
[BlackElo "2776"]
[Annotator "TA"]
[PlyCount "137"]
[EventDate "2022.06.17"]
[EventType "tourn"]
[EventCountry "ESP"]
[SourceTitle "playchess.com"]
[Source "ChessBase"]
[SourceQuality "1"]
[TimeControl "40/7200:20/3600:900+30"]

{[%evp 9,137,0,10,15,7,-4,20,13,26,32,85,56,123,117,131,134,126,95,95,94,125,101,123,72,69,46,47,43,61,61,73,69,60,56,70,50,76,71,71,70,83,20,23,30,21,16,10,12,70,10,14,0,80,90,90,87,118,29,29,29,29,29,29,29,30,29,29,29,27,27,54,54,54,50,52,52,56,52,52,52,52,29,29,8,69,18,18,17,17,16,24,16,16,16,16,8,16,8,8,8,8,0,0,0,20,0,18,0,0,0,8,0,0,0,0,0,0,0,0,0,8,8,8,8,8,8,8,8,8,8]} 1. e4 {[%emt 0:00:02]} c5 {[%emt 0:00:58]} 2. Nf3 {[%emt 0:00:07]} e6 {[%emt 0:01:18]} 3. d4 {[%emt 0:00:07]} cxd4 {[%emt 0:00:25]} 4. Nxd4 {[%emt 0:00:07]} Nc6 {[%emt 0:00:11]} 5. Bf4 {[%emt 0:01:26]} d6 {[%emt 0:02:46]} 6. Nxc6 {[%emt 0:00:25] B44: Sicilian: Taimanov: 5 Nb5.} bxc6 {[%emt 0:00:05] [#]} 7. Bd3 $146 {[%emt 0:00:06]} ({Predecessor:} 7. c4 Rb8 8. Qc2 e5 9. Be3 Nf6 10. Nc3 Qc7 11. Be2 Be7 12. O-O O-O 13. Rac1 {½-½ (62) Rapport,R (2763)-Caruana,F (2806) Saint Louis 2021}) 7... Ne7 {[%emt 0:06:17]} 8. c4 {[%emt 0:08:18]} g6 {[%emt 0:14:44]} 9. c5 {[%emt 0:15:53]} e5 {[%emt 0:20:46]} (9... d5 $14) 10. Bg5 $16 {[%emt 0:00:57]} Bg7 {[%emt 0:02:59] [#] Against Bf6} (10... d5 $1 $14) 11. cxd6 $1 {[%emt 0:07:07]} Qxd6 {[%emt 0:00:07]} 12. O-O {[%emt 0:00:38]} Be6 {[%emt 0:05:42]} 13. Na3 {[%emt 0:04:21]} Rd8 {[%emt 0:00:37]} 14. Be2 {[%emt 0:02:50]} Qxd1 {[%emt 0:03:17]} 15. Rfxd1 {[%emt 0:00:13]} Rxd1+ {[%emt 0:00:54]} 16. Bxd1 {[%emt 0:01:20]} (16. Rxd1 $142 {[%cal Oa3b5] aiming for Nb5!} Bxa2 17. Nc4) 16... Kd7 {[%emt 0:09:39]} 17. Be2 {[%emt 0:05:14]} (17. Ba4 $5 {[%cal Ra1d1]} Rb8 18. b3 $14 (18. Rd1+ Ke8 $14)) 17... Nc8 {[%emt 0:02:33]} 18. Rd1+ {[%emt 0:02:25]} Kc7 {[%emt 0:00:57]} 19. Bc4 {[%emt 0:00:20]} Bg4 {[%emt 0:03:25]} 20. f3 {[%emt 0:03:34]} f6 $1 {[%emt 0:00:26]} 21. Be3 {[%emt 0:03:16]} Bd7 {[%emt 0:00:19]} 22. Be2 {[%emt 0:06:07] White is much more active. The black rooks are badly placed.} h5 {[%emt 0:06:08]} 23. Nc2 {[%emt 0:10:45]} Bf8 {[%emt 0:01:48] Against Nb4} 24. a3 {[%emt 0:00:35]} a5 {[%emt 0:07:27]} 25. Kf1 {[%emt 0:10:19]} (25. Rc1 $16) 25... Be6 $11 {[%emt 0:01:41]} 26. Bd2 {[%emt 0:01:52]} Kb6 {[%emt 0:00:28]} 27. Ne3 {[%emt 0:00:27] Strongly threatening Bc4.} Nd6 {[%emt 0:02:15] Against Bc4} 28. Rc1 {[%emt 0:02:28]} c5 {[%emt 0:01:08]} ({Better is} 28... Be7 $11) 29. Be1 {[%emt 0:07:25]} (29. b4 $14 axb4 30. axb4) 29... Bh6 {[%emt 0:05:43]} 30. Rd1 {[%emt 0:00:49]} Rd8 {[%emt 0:00:54]} (30... Kc6 $11 {keeps the balance.} 31. Nd5 Bxd5 32. Rxd5 Rb8) 31. Nd5+ $16 {[%emt 0:01:37]} Bxd5 {[%emt 0:00:06]} 32. Rxd5 {[%emt 0:00:07]} Be3 {[%emt 0:06:29]} 33. Rd3 {[%emt 0:07:55]} ({White should try} 33. b3 $16) 33... Bd4 $11 {[%emt 0:00:02]} 34. Rb3+ {[%emt 0:00:08]} Kc6 {[%emt 0:00:02]} 35. Bxa5 {[%emt 0:00:09]} Ra8 {[%emt 0:00:07]} 36. Rb6+ {[%emt 0:00:57]} Kd7 {[%emt 0:00:06]} 37. Ra6 {[%emt 0:01:09]} Rxa6 {[%emt 0:01:49]} 38. Bxa6 {[%emt 0:00:03]} Bxb2 {[%emt 0:00:22][%mdl 4096] Endgame KBB-KBN} 39. a4 {[%emt 0:00:04]} c4 {[%emt 0:00:56] [#] Threatens to win with ...c3.} 40. Bb4 {[%emt 0:00:00]} h4 {[%emt 0:00:00]} 41. Ke2 {[%emt 0:16:01]} Kc6 {[%emt 0:03:55]} 42. Ba5 {[%emt 0:03:49]} Bc1 {[%emt 0:12:31]} 43. Bd8 {[%emt 0:02:49] A strong pair of Bishops.} Bg5 {[%emt 0:01:28]} 44. Kd1 {[%emt 0:03:54]} Kd7 {[%emt 0:00:59]} 45. Bb6 {[%emt 0:00:36] Hoping for Bb5+.} Kc6 {[%emt 0:01:27] Inhibits Bb5+.} 46. a5 {[%emt 0:08:34]} Bf4 {[%emt 0:04:52]} (46... f5 $1 $11) 47. Kc2 {[%emt 0:03:32]} (47. Bd8 $14) 47... f5 {[%emt 0:05:41]} 48. Kc3 {[%emt 0:04:41]} fxe4 {[%emt 0:01:05]} 49. fxe4 {[%emt 0:00:11]} Nxe4+ {[%emt 0:03:35]} 50. Kxc4 {[%emt 0:00:07]} Nd6+ {[%emt 0:00:09] The position is equal.} 51. Kb4 {[%emt 0:02:33]} Bxh2 {[%emt 0:00:21]} 52. Be2 {[%emt 0:00:06]} e4 {[%emt 0:04:56]} 53. Bc5 {[%emt 0:05:31][%mdl 1024] White has compensation.} Nf5 {[%emt 0:05:14]} 54. Bb5+ {[%emt 0:01:15]} Kc7 $1 {[%emt 0:00:18]} 55. Bb6+ {[%emt 0:06:43]} Kb7 {[%emt 0:00:51]} 56. Bc4 {[%emt 0:00:05] Black must now prevent Bd5+.} Nd6 {[%emt 0:03:45]} 57. Be2 {[%emt 0:00:16]} Kc6 {[%emt 0:04:13]} 58. Bc5 {[%emt 0:02:05]} Nf5 {[%emt 0:00:16]} 59. Bb5+ {[%emt 0:01:36]} Kc7 $1 {[%emt 0:00:06]} 60. a6 {[%emt 0:00:00] Intending a7 and mate.} Bd6 {[%emt 0:00:00]} 61. a7 {[%emt 0:05:12]} Bxc5+ {[%emt 0:01:57]} 62. Kxc5 {[%emt 0:00:04] KB-KN} Kb7 {[%emt 0:00:03]} 63. Bc6+ {[%emt 0:00:08]} Kxa7 {[%emt 0:00:03]} 64. Bxe4 {[%emt 0:00:05]} Ne3 {[%emt 0:00:07]} 65. Kd4 {[%emt 0:00:04]} Nxg2 {[%emt 0:00:05]} 66. Bxg2 {[%emt 0:00:03]} g5 {[%emt 0:00:04]} 67. Bh3 {[%emt 0:00:04]} g4 {[%emt 0:00:03]} 68. Bxg4 {[%emt 0:00:04]} h3 {[%emt 0:00:02]} 69. Bxh3 {[%emt 0:18:10] Weighted Error Value: White=0.15 (very precise) /Black=0.12 (very precise)} 1/2-1/2

[Event "FIDE Candidates Tournament 2022"]
[Site "Madrid"]
[Date "2022.06.21"]
[Round "4.3"]
[White "Duda, Jan-Krzysztof"]
[Black "Radjabov, Teimour"]
[Result "1/2-1/2"]
[ECO "C65"]
[WhiteElo "2750"]
[BlackElo "2753"]
[Annotator "TA"]
[PlyCount "81"]
[EventDate "2022.06.17"]
[EventType "tourn"]
[EventCountry "ESP"]
[SourceTitle "playchess.com"]
[Source "ChessBase"]
[SourceQuality "1"]
[TimeControl "40/7200:20/3600:900+30"]

{[%evp 9,81,-10,-6,-10,12,0,20,6,48,43,53,58,60,56,57,68,68,32,22,27,23,2,28,30,38,14,9,9,13,0,0,0,0,0,0,0,8,10,5,0,20,-4,0,0,0,0,0,0,0,0,0,0,0,0,0,0,0,0,0,0,0,0,0,0,0,0,0,0,0,0,0,0,0,0]} 1. e4 {[%emt 0:00:04]} e5 {[%emt 0:00:03]} 2. Nf3 {[%emt 0:00:06]} Nc6 {[%emt 0:00:04]} 3. Bb5 {[%emt 0:00:08]} Nf6 {[%emt 0:00:04]} 4. d3 {[%emt 0:00:06]} Bc5 {[%emt 0:00:04]} 5. Bg5 {[%emt 0:00:08]} h6 {[%emt 0:07:05]} 6. Bh4 {[%emt 0:00:39] C65: Ruy Lopez: Berlin Defence (3...Nf6), unusual lines and 4 0-0 Bc5.} d6 {[%emt 0:07:25]} 7. Nc3 {[%emt 0:01:06]} Bd7 {[%emt 0:10:32] [#]} 8. Na4 $146 {[%emt 0:04:34]} ({Predecessor:} 8. Nd5 g5 9. Bg3 Nxd5 10. exd5 Ne7 11. Bxd7+ Qxd7 12. Qe2 Bb6 13. O-O-O O-O-O 14. d4 {1-0 (41) Bellahcene,B (2528)-Chen,J (2059) Chess.com INT 2021}) 8... Bb4+ {[%emt 0:05:48]} 9. c3 {[%emt 0:00:41]} Ba5 {[%emt 0:01:11]} 10. b4 {[%emt 0:01:03] [#] aiming for Bxf6.} Bb6 {[%emt 0:01:13]} 11. O-O {[%emt 0:01:17]} Ne7 {[%emt 0:09:11]} 12. Bxf6 {[%emt 0:17:31]} gxf6 {[%emt 0:00:51]} 13. Bxd7+ {[%emt 0:00:26]} ({Don't play} 13. Nxb6 axb6 14. Bc4 Ng6 $11) 13... Qxd7 {[%emt 0:00:03]} 14. Nh4 {[%emt 0:00:36]} Rg8 {[%emt 0:03:44] [#] Threatens to win with ...Qh3.} 15. Kh1 {[%emt 0:01:11]} O-O-O {[%emt 0:03:37]} 16. Nxb6+ {[%emt 0:01:51]} axb6 {[%emt 0:01:40]} 17. Qf3 {[%emt 0:01:02]} f5 $1 {[%emt 0:06:34] The position is equal.} 18. exf5 {[%emt 0:26:44]} Rg5 {[%emt 0:02:00]} 19. a4 {[%emt 0:00:51]} Nxf5 {[%emt 0:05:03]} 20. Nxf5 {[%emt 0:00:25]} Qxf5 {[%emt 0:00:52]} 21. Qe3 {[%emt 0:00:31]} Rdg8 {[%emt 0:04:54]} 22. Rg1 {[%emt 0:00:42]} Qf4 {[%emt 0:10:27]} 23. Qxf4 {[%emt 0:10:19]} exf4 $11 {[%emt 0:00:22][%mdl 4096] Endgame KRR-KRR} 24. Rae1 {[%emt 0:00:53]} Re5 {[%emt 0:06:17] Prevents Re7.} 25. d4 {[%emt 0:01:25]} Ree8 {[%emt 0:03:07]} 26. g3 {[%emt 0:07:44]} Rxe1 {[%emt 0:01:57]} 27. Rxe1 {[%emt 0:01:19]} fxg3 {[%emt 0:04:13]} 28. hxg3 {[%emt 0:01:33] KR-KR} Kd7 {[%emt 0:00:02]} 29. Kg2 {[%emt 0:00:40]} Ra8 {[%emt 0:00:04]} 30. Rh1 {[%emt 0:00:58]} Rxa4 {[%emt 0:01:30]} 31. Rxh6 {[%emt 0:00:25]} c5 {[%emt 0:01:44]} 32. dxc5 {[%emt 0:03:54]} bxc5 {[%emt 0:00:05]} 33. bxc5 {[%emt 0:00:09]} dxc5 {[%emt 0:00:02]} 34. Rf6 {[%emt 0:00:27]} Ke7 {[%emt 0:00:07]} 35. Rb6 {[%emt 0:00:05]} Ra3 {[%emt 0:00:04]} 36. Rxb7+ {[%emt 0:00:29]} Kf6 {[%emt 0:00:36]} 37. Kf3 {[%emt 0:00:28]} Rxc3+ {[%emt 0:00:05]} 38. Ke4 {[%emt 0:00:04]} Rc4+ {[%emt 0:01:12]} 39. Ke3 {[%emt 0:00:06]} Rc3+ {[%emt 0:00:06]} 40. Ke4 {[%emt 0:00:00]} Rc4+ {[%emt 0:00:00]} 41. Ke3 {[%emt 0:00:08] Weighted Error Value: White=0.04 (flawless) /Black=0.04 (flawless)} 1/2-1/2

[Event "FIDE Candidates Tournament 2022"]
[Site "Madrid"]
[Date "2022.06.25"]
[Round "7.2"]
[White "Duda, Jan-Krzysztof"]
[Black "Nakamura, Hikaru"]
[Result "1/2-1/2"]
[ECO "E48"]
[WhiteElo "2750"]
[BlackElo "2760"]
[Annotator "TA"]
[PlyCount "80"]
[EventDate "2022.06.17"]
[EventType "tourn"]
[EventCountry "ESP"]
[SourceTitle "playchess.com"]
[Source "ChessBase"]
[SourceQuality "1"]
[TimeControl "40/7200:20/3600:900+30"]

{[%evp 19,80,0,7,4,34,27,25,25,28,28,32,20,31,20,26,15,20,16,19,19,12,9,19,6,0,9,35,0,0,0,0,0,4,4,4,0,4,8,16,4,6,6,10,0,29,32,57,0,0,0,0,0,0,0,0,0,0,0,0,0,0,0,0]} 1. d4 {[%emt 0:00:02]} Nf6 {[%emt 0:00:08]} 2. c4 {[%emt 0:00:06]} e6 {[%emt 0:00:04]} 3. Nc3 {[%emt 0:00:07]} Bb4 {[%emt 0:00:09]} 4. e3 {[%emt 0:00:07]} O-O {[%emt 0:00:09]} 5. Bd3 {[%emt 0:00:05]} c5 {[%emt 0:00:33]} 6. Nge2 {[%emt 0:00:12]} d5 {[%emt 0:00:32]} 7. cxd5 {[%emt 0:00:27]} cxd4 {[%emt 0:00:48]} 8. exd4 {[%emt 0:00:07]} Nxd5 {[%emt 0:00:11]} 9. O-O {[%emt 0:00:08]} Nc6 {[%emt 0:00:02]} 10. a3 {[%emt 0:00:08]} Bd6 $1 {[%emt 0:00:42] 10...Bd6 is better than 10...Be7.} 11. Re1 {[%emt 0:00:22] E48: Nimzo-Indian: Rubinstein: 5 Bd3 d5 including 6 Ne2, but excluding 6 a3.} Nce7 {[%emt 0:10:10] [#]} 12. Bc2 $146 {[%emt 0:03:24]} ({Predecessor:} 12. Bb1 Re8 13. Qd3 Ng6 14. Nxd5 exd5 15. Bd2 Qh4 16. h3 Be6 17. Ba2 Rac8 18. Rac1 Rxc1 19. Bxc1 {½-½ (65) Struzka,V (2055)-Tauscher,K ICCF email 2013}) 12... Bd7 {[%emt 0:08:23]} 13. Qd3 {[%emt 0:01:34][%csl Gc2][%cal Rd3h7] [#] White has an edge.} f5 {[%emt 0:00:49]} 14. Bb3 {[%emt 0:08:23]} Qb6 {[%emt 0:15:11]} 15. Nxd5 {[%emt 0:04:02]} Nxd5 {[%emt 0:00:58]} 16. Bxd5 {[%emt 0:00:28]} exd5 {[%emt 0:00:04]} 17. Bf4 {[%emt 0:00:08]} Rae8 {[%emt 0:00:58][%cal Oe8e2] Against Be5} 18. g3 {[%emt 0:10:17]} Bxf4 {[%emt 0:10:58]} 19. Nxf4 {[%emt 0:00:27]} Re4 {[%emt 0:00:03]} 20. Red1 {[%emt 0:22:19][%cal Be1d1,Bd1d2,Bd2e2][%mdl 32]} Bc6 {[%emt 0:11:47]} 21. h4 {[%emt 0:07:27]} Rfe8 {[%emt 0:06:40][%cal Bf8e8,Be8e1,Be1d1,Bd1d4,Bd4a4][%mdl 32]} 22. Qc3 {[%emt 0:03:15]} g6 {[%emt 0:08:01]} 23. b4 {[%emt 0:05:14]} Ba4 {[%emt 0:08:50]} 24. Rd2 {[%emt 0:06:23]} Qc6 {[%emt 0:00:40]} 25. Qc5 {[%emt 0:20:30]} Re1+ {[%emt 0:03:59]} 26. Rxe1 {[%emt 0:01:26]} Rxe1+ {[%emt 0:00:02]} 27. Kg2 {[%emt 0:00:48]} Qxc5 {[%emt 0:00:32]} 28. bxc5 $11 {[%emt 0:01:45][%mdl 4096] Endgame KRB-KRN} Bc6 {[%emt 0:02:41]} 29. Re2 {[%emt 0:08:16]} Rd1 {[%emt 0:04:32]} 30. Ne6 {[%emt 0:00:25]} Bd7 {[%emt 0:02:01]} 31. Nd8 {[%emt 0:01:11] [#] Black must now prevent Re7.} Rxd4 {[%emt 0:05:54]} (31... Kf8 $5 {[%cal Rd1d4]}) 32. Re7 {[%emt 0:00:22]} Bc6 {[%emt 0:00:04]} 33. Nxc6 {[%emt 0:02:48]} ({White should play} 33. Nxb7 $14 Rc4 34. Nd8) 33... bxc6 $14 {[%emt 0:00:04] KR-KR. The position is equal.} 34. Rc7 {[%emt 0:00:05]} Ra4 {[%emt 0:02:17]} 35. Rxc6 {[%emt 0:00:09]} Rxa3 {[%emt 0:00:05]} 36. Rd6 {[%emt 0:00:10]} Rc3 {[%emt 0:00:08]} 37. Rxd5 {[%emt 0:00:05]} a5 {[%emt 0:00:03][%cal Ba7a5,Ba5a4,Ba4a3][%mdl 32]} 38. c6 {[%emt 0:00:06]} a4 {[%emt 0:00:27]} 39. Ra5 {[%emt 0:00:06]} a3 {[%emt 0:00:07]} 40. c7 {[%emt 0:00:00]} Rxc7 {[%emt 0:00:00] Weighted Error Value: White=0.05 (flawless) /Black=0.03 (flawless)} 1/2-1/2

[Event "FIDE Candidates Tournament 2022"]
[Site "Madrid"]
[Date "2022.07.01"]
[Round "12.3"]
[White "Duda, Jan-Krzysztof"]
[Black "Firouzja, Alireza"]
[Result "1/2-1/2"]
[ECO "D46"]
[WhiteElo "2750"]
[BlackElo "2804"]
[Annotator "TA"]
[PlyCount "82"]
[EventDate "2022.06.17"]
[EventType "tourn"]
[EventCountry "ESP"]
[SourceTitle "playchess.com"]
[Source "ChessBase"]
[SourceQuality "1"]
[TimeControl "40/7200:20/3600:900+30"]

{[%evp 21,82,0,4,14,6,12,18,12,8,22,11,0,0,0,0,0,0,0,0,0,0,0,0,0,28,69,20,41,68,58,156,155,162,7,31,0,127,120,110,127,120,101,129,129,121,110,108,68,74,42,43,41,50,0,0,0,0,-19,-8,-8,-8,-8,-8]} 1. d4 {[%emt 0:00:02]} Nf6 {[%emt 0:00:27]} 2. c4 {[%emt 0:00:07]} e6 {[%emt 0:00:05]} 3. Nf3 {[%emt 0:00:07]} d5 {[%emt 0:00:09]} 4. Nc3 {[%emt 0:00:05]} c6 {[%emt 0:00:48]} 5. e3 {[%emt 0:00:09]} Nbd7 {[%emt 0:00:11]} 6. Qc2 {[%emt 0:00:06]} Bd6 {[%emt 0:00:27]} 7. Be2 {[%emt 0:00:10]} O-O {[%emt 0:00:32]} 8. O-O {[%emt 0:00:27]} dxc4 {[%emt 0:01:10]} 9. Bxc4 {[%emt 0:00:08]} b5 {[%emt 0:00:22]} 10. Bd3 {[%emt 0:06:50]} Bb7 {[%emt 0:00:09]} 11. a3 {[%emt 0:00:06]} a5 {[%emt 0:00:40] 11...Rc8 gains popularity.} 12. e4 {[%emt 0:03:56] D46: Semi-Slav: 5 e3 Nbd7 6 Bd3, Black avoids the Meran.} e5 {[%emt 0:01:04]} 13. dxe5 {[%emt 0:02:47]} Nxe5 {[%emt 0:00:09]} 14. Nxe5 {[%emt 0:00:05]} Bxe5 {[%emt 0:00:06]} 15. h3 {[%emt 0:00:06]} Ba6 {[%emt 0:13:23]} 16. Be3 {[%emt 0:13:33]} b4 {[%emt 0:22:54]} 17. Bxa6 {[%emt 0:01:11] [#] Strongly threatening Rfd1.} bxc3 {[%emt 0:00:05]} 18. Bc4 {[%emt 0:06:44]} cxb2 {[%emt 0:03:48]} 19. Rad1 {[%emt 0:00:51]} Qe7 {[%emt 0:01:28]} 20. Bc5 $1 {[%emt 0:06:31] A strong pair of Bishops.} Qc7 {[%emt 0:00:48]} 21. Bxf8 {[%emt 0:03:30]} Rxf8 {[%emt 0:02:20]} 22. g3 {[%emt 0:01:39] [#]} g5 $146 {[%emt 0:04:44]} ({Predecessor:} 22... c5 23. f4 Bd4+ 24. Kh2 Qb7 25. Rfe1 Rb8 26. Ba2 g6 27. e5 Nd5 28. Rd3 a4 29. Qd2 Qc6 30. Qc2 Qb7 31. Qd2 Qc6 32. Qc2 {½-½ (32) Dubov,D (2629)-Shirov,A (2695) Moscow 2013}) 23. f4 {[%emt 0:25:02]} gxf4 {[%emt 0:03:04]} 24. gxf4 {[%emt 0:00:37]} Bxf4 {[%emt 0:02:03]} 25. Qxb2 {[%emt 0:03:40] Chess con chili.} Nh5 {[%emt 0:12:10]} ({Black should try} 25... Be5 $1 $14 26. Qf2 Qe7) 26. Rd3 $16 {[%emt 0:08:09] 0x0.001e6c5f1f2fdp-1022s more active pieces.} Qe7 {[%emt 0:15:24]} 27. Rf2 $2 {[%emt 0:04:39] [#]} (27. Ba2 $18) 27... Be5 $1 $11 {[%emt 0:04:34]} 28. Qe2 {[%emt 0:07:33]} Nf6 {[%emt 0:05:16]} (28... Nf4 $1 $11 29. Qg4+ Kh8) 29. Kh1 {[%emt 0:01:09]} Kh8 {[%emt 0:00:22]} 30. Rg2 {[%emt 0:02:52]} Rb8 {[%emt 0:02:01]} 31. Ba2 {[%emt 0:02:07] Against Rb1+} Ne8 {[%emt 0:09:40][%cal Bf6e8,Be8d6,Bd6e4,Be4g3][%mdl 32]} 32. Qe3 {[%emt 0:00:48] And now Qg5 would win.} Nd6 {[%emt 0:01:26]} 33. Rd1 {[%emt 0:03:16]} Qf6 {[%emt 0:02:00]} 34. Rf2 {[%emt 0:02:05]} Qg6 {[%emt 0:00:30]} 35. Rg1 {[%emt 0:00:55]} (35. Re2 $5 {[%cal Rd1g1]}) 35... Qxe4+ {[%emt 0:00:31]} 36. Qxe4 {[%emt 0:00:18]} Nxe4 {[%emt 0:00:04]} 37. Rxf7 {[%emt 0:00:21]} (37. Rfg2 $14) 37... Ng3+ {[%emt 0:01:22] The position is equal.} 38. Kg2 {[%emt 0:00:36]} Rb2+ {[%emt 0:00:27]} 39. Rf2 {[%emt 0:01:51]} Rxf2+ {[%emt 0:00:06]} 40. Kxf2 {[%emt 0:00:00]} Bd4+ {[%emt 0:00:00]} 41. Kxg3 {[%emt 0:00:08]} Bxg1 {[%emt 0:00:12] Weighted Error Value: White=0.18 (very precise) /Black=0.18 (very precise)} 1/2-1/2

[Event "FIDE Candidates Tournament 2022"]
[Site "Madrid"]
[Date "2022.07.04"]
[Round "14.4"]
[White "Duda, Jan-Krzysztof"]
[Black "Nepomniachtchi, Ian"]
[Result "1/2-1/2"]
[ECO "C43"]
[WhiteElo "2750"]
[BlackElo "2773"]
[Annotator "TA"]
[PlyCount "95"]
[EventDate "2022.06.17"]
[EventType "tourn"]
[EventCountry "ESP"]
[SourceTitle "playchess.com"]
[Source "ChessBase"]
[SourceQuality "1"]
[TimeControl "40/7200:20/3600:900+30"]

{[%evp 9,95,11,8,16,16,10,9,9,12,7,13,5,17,-16,-13,-13,-10,-14,-7,-27,0,0,-5,-5,20,-15,-27,-25,10,0,16,22,12,12,9,9,14,0,0,0,0,0,0,0,0,0,0,0,0,0,0,0,0,0,0,0,0,0,0,0,0,0,0,0,0,0,0,0,0,0,0,0,0,0,0,0,0,0,0,0,0,0,8,-8,-8,-8,-8,-8]} 1. e4 {[%emt 0:00:02]} e5 {[%emt 0:00:08]} 2. Nf3 {[%emt 0:00:05]} Nf6 {[%emt 0:00:06]} 3. d4 {[%emt 0:00:06]} Nxe4 {[%emt 0:00:20]} 4. dxe5 {[%emt 0:00:06]} d5 {[%emt 0:01:36]} 5. Nbd2 {[%emt 0:00:09]} Qd7 {[%emt 0:00:23]} 6. Bd3 {[%emt 0:00:22] C43: Petroff Defence: 3 d4.} Nc5 {[%emt 0:00:39]} 7. Be2 {[%emt 0:00:07]} Ne6 {[%emt 0:02:02]} 8. O-O {[%emt 0:00:40]} Be7 {[%emt 0:02:05] [#]} 9. Re1 $146 {[%emt 0:00:10]} ({Predecessor:} 9. c4 Nf4 10. cxd5 Nxe2+ 11. Qxe2 Qxd5 12. Rd1 Bg4 13. h3 Bh5 14. Ne4 Bxf3 15. Qxf3 {1-0 (30) Hector,J (2501)-Westerberg,J (2534) Malmo 2018}) 9... O-O {[%emt 0:00:46]} 10. Nf1 {[%emt 0:00:07]} c5 {[%emt 0:00:32][%cal Bc7c5,Bc5c4][%mdl 32]} 11. Bd3 {[%emt 0:00:18]} Rd8 {[%emt 0:10:07]} 12. Ng3 {[%emt 0:00:40]} g6 {[%emt 0:03:02]} 13. c3 {[%emt 0:00:28]} Nc6 {[%emt 0:01:42]} 14. h4 {[%emt 0:00:08]} c4 {[%emt 0:02:03]} 15. Bc2 {[%emt 0:00:20]} a5 {[%emt 0:00:12]} 16. h5 {[%emt 0:34:48]} Ra6 {[%emt 0:00:20]} 17. Be3 {[%emt 0:08:52]} d4 {[%emt 0:08:35]} 18. cxd4 {[%emt 0:01:00]} Ncxd4 {[%emt 0:04:42]} 19. Ne4 {[%emt 0:09:20] The position is equal.} Nxf3+ {[%emt 0:06:23]} 20. Qxf3 {[%emt 0:00:24] White wants to play Red1.} Nd4 {[%emt 0:00:06]} 21. Bxd4 {[%emt 0:11:51]} Qxd4 {[%emt 0:00:13]} 22. Rad1 {[%emt 0:00:08]} Qxb2 {[%emt 0:00:20] [#]} 23. hxg6 $1 {[%emt 0:14:00]} hxg6 {[%emt 0:03:57]} 24. Rxd8+ {[%emt 0:01:02]} Bxd8 {[%emt 0:01:06]} 25. Nd6 {[%emt 0:00:26]} Be6 {[%emt 0:06:06]} 26. Bxg6 {[%emt 0:01:32]} fxg6 {[%emt 0:06:40]} 27. Qe4 {[%emt 0:00:20]} Kg7 {[%emt 0:19:13] [#] White must now prevent ...c3.} 28. Rb1 {[%emt 0:00:29]} Bd5 $1 {[%emt 0:01:20]} 29. Rxb2 {[%emt 0:03:06] Chess con chili.} Bxe4 {[%emt 0:00:05]} 30. Nxe4 {[%emt 0:00:06]} Rb6 {[%emt 0:00:03]} 31. Rxb6 {[%emt 0:05:19]} Bxb6 $11 {[%emt 0:00:09][%mdl 4096] Endgame KB-KN} 32. Kf1 {[%emt 0:00:04]} Bd4 {[%emt 0:07:39]} 33. Nd6 {[%emt 0:03:11]} Bxe5 {[%emt 0:03:00]} 34. Nxc4 {[%emt 0:00:31]} Bc7 {[%emt 0:00:04]} 35. Ke2 {[%emt 0:02:34]} Kf6 {[%emt 0:00:29]} 36. Kd3 {[%emt 0:00:40]} Ke6 {[%emt 0:00:16]} 37. Ke4 {[%emt 0:01:53]} b5 {[%emt 0:00:27]} 38. Na3 {[%emt 0:01:36]} b4 {[%emt 0:00:08]} 39. Nc4 {[%emt 0:00:04]} a4 {[%emt 0:03:26]} 40. f4 {[%emt 0:00:00]} b3 {[%emt 0:00:00]} 41. axb3 {[%emt 0:02:23]} axb3 {[%emt 0:08:15]} 42. g4 {[%emt 0:00:17]} Kf6 {[%emt 0:00:09]} 43. f5 {[%emt 0:00:26]} gxf5+ {[%emt 0:00:10]} 44. gxf5 {[%emt 0:00:05]} Bb8 {[%emt 0:00:03]} 45. Kd3 {[%emt 0:00:06]} Kxf5 {[%emt 0:00:03]} 46. Nd6+ {[%emt 0:00:05]} Bxd6 {[%emt 0:00:14]} 47. Kc3 {[%emt 0:00:04]} b2 {[%emt 0:00:03]} 48. Kxb2 {[%emt 1:09:30] An even fight not without its subleties.  Weighted Error Value: White=0.03 (flawless) /Black=0.03 (flawless)} 1/2-1/2